Cogmind - Beta 14 @@@ ROGUE MODE // 2024.12.02 @ 20:51:27 Player: akira Result: Destroyed by NM-BY9(R) with Subdweller Machine Gun Performance ------------- Evolutions (0) 0 Regions Visited (2) 400 Robots Destroyed (28) 140 Value Destroyed (795) 795 Prototype IDs (0) 0 Alien Tech Used (0) 0 Bonus (0) 0 TOTAL SCORE: 1335 Bonus ------- None Cogmind --------- Core Integrity 0/250 Matter 106/300 Energy 124/125 System Corruption 0% Temperature Cool (0) Movement Treading (260) Ox1 Location -10/Subcaves Parts ------- > --- POWER (1) -------- Light Ion Engine > --- PROPULSION (2) --- Spiked Treads > --- UTILITY (2) ------ Large Storage Unit > --- WEAPON (2) ------- Medium Laser Battle Rifle > --- INVENTORY (15) --- Light Ion Engine Aluminum Leg Compact Wheel Small Storage Unit Visual Processing Unit Improved Terrain Scanner ECM Suite Scrap Shield Light Cannon Light Cannon Light Cannon Light Cannon Grenade Launcher Scrap Shield Fragment (48) Peak State ------------ > --- POWER ------------ Light Ion Engine > --- PROPULSION ------- Light Treads Spiked Treads > --- UTILITY ---------- Large Storage Unit Light Armor Plating > --- WEAPON ----------- Medium Laser Battle Rifle > --- INVENTORY -------- Light Ion Engine Aluminum Leg Compact Wheel Small Storage Unit Visual Processing Unit Improved Terrain Scanner ECM Suite Scrap Shield Light Cannon Light Cannon Light Cannon Light Cannon Grenade Launcher Scrap Shield Fragment [Rating: 11] Favorites ----------- Power Ion Engine Engine Ion Engine Propulsion Light Treads Treads Light Treads Leg Aluminum Leg Utility Large Storage Unit Device Seismic Detector Storage Large Storage Unit Protection Light Armor Plating Weapon Light Cannon Energy Gun Medium Laser Ballistic Gun Assault Rifle Ballistic Cannon Light Cannon Launcher Grenade Launcher Build | -11 -10 -10 ------- Run | Yrd Mat Sub Slots Evolved . | . . . Power . | . . . Propulsion . | . . . Utility . | . . . Weapon . | . . . Parts Attached 26 | 6 8 12 Power 4 | 1 1 2 Engine 4 | 1 1 2 Core . | . . . Reactor . | . . . Propulsion 6 | 2 2 2 Treads 4 | . 2 2 Leg 2 | 2 . . Wheel . | . . . Hover . | . . . Flight . | . . . Utility 4 | 1 2 1 Device 1 | . 1 . Storage 2 | 1 1 . Processor . | . . . Hackware . | . . . Protection 1 | . . 1 Artifact . | . . . Weapon 12 | 2 3 7 Energy Gun 3 | 1 1 1 Energy Cannon . | . . . Ballistic Gun 3 | 1 1 1 Ballistic Cannon 3 | . . 3 Launcher 3 | . 1 2 Special Weapon . | . . . Impact Weapon . | . . . Slashing Weapon . | . . . Piercing Weapon . | . . . Special Melee Weapon . | . . . Unidentified Prototypes . | . . . Parts Lost 11 | . 3 8 Power 3 | . 1 2 Propulsion 4 | . 1 3 Utility 2 | . . 2 Weapon 2 | . 1 1 Highest Loss Streak 3 | . 3 3 To Critical Strikes . | . . . Average Slot Usage (%) 97 | . 99 95 Engine 12 | . 13 10 Treads 25 | . 23 27 Leg 1 | . 4 . Device 11 | . 14 9 Storage 14 | . 14 14 Protection 2 | . . 4 Energy Gun 14 | . 26 5 Ballistic Cannon 12 | . . 21 Peak Build Rating 11 | 7 8 11 Average Rating 7 | 3 7 8 On Entrance 5 | . 7 8 Naked Turns . | . . . Heaviest Build 32 | 13 29 32 Greatest Support 40 | 20 40 40 Greatest Overweight (x) 3 | 3 . 1 Average Overweight (x) . | 1 . . Largest Inventory Capacity 15 | 8 15 15 Average Capacity 14 | 7 13 15 Most Carried 15 | 8 15 15 Average Carried 13 | 5 12 14 Final Capacity 15 | 8 15 15 Final Carried 15 | 8 15 15 Class Distribution -------------------- 100% | Mutant Dominant Class ---------------- Mutant | -10/Materials Mutant | -10/Subcaves Resources | -11 -10 -10 ----------- Run | Yrd Mat Sub Matter Collected 838 | 208 189 441 Remotely . | . . . Salvage Created 752 | 10 518 224 Parts 50 | 3 32 15 Haulers Intercepted 1 | . 1 . Recyclers Shooed 1 | . 1 . Parts Field Recycled . | . . . Retrieved Matter . | . . . Parts Self-Destructed 9 | . . 9 Prevented . | . . . Kills | -11 -10 -10 ------- Run | Yrd Mat Sub Combat Hostiles Destroyed 24 | . 13 11 Guns 10 | . 9 1 Cannons 6 | . . 6 AOE 7 | . 3 4 Classes Destroyed 8 | 1 5 2 Builder 1 | . 1 . Tunneler 1 | 1 . . Hauler 1 | . 1 . Watcher 1 | . 1 . Swarmer 6 | . 3 3 Grunt 12 | . 10 2 Sentry 1 | . . 1 Subdweller 5 | . . 5 Best Kill Streak 6 | 1 6 3 Combat Bots Only 5 | . 5 3 Max Kills in Single Turn 3 | 1 2 3 Gunslinging . | . . . Exploded 3 | . 2 3 Melee . | . . . Uniques/NPCs Destroyed . | . . . Combat | -11 -10 -10 -------- Run | Yrd Mat Sub Hostile Shots Fired 147 | . 62 85 Missed 37 | . 17 20 Damage Taken 1829 | . 626 1203 Core 260 | . 90 170 Absorbed by Shields . | . . . Core Remaining (%) 100 | 100 . . Volleys Fired 126 | 1 44 81 Largest 2 | 2 2 2 Hottest 90 | 60 90 90 Shots Fired 240 | 2 82 156 Gun 116 | 2 79 35 Cannon 116 | . . 116 Launcher 8 | . 3 5 Special . | . . . Kinetic 142 | 1 13 128 Thermal 90 | 1 66 23 Explosive 8 | . 3 5 Electromagnetic . | . . . Robot Hit Streak 29 | 1 18 29 Robot Miss Streak 3 | 1 3 2 Penetration Max . | . . . Secondary Targets 2 | . 2 . Max Gunslinging Chain 1 | . 1 . Shots Hit Robots 124 | 1 63 60 Core Hits 50 | 1 30 19 Critical Kills . | . . . Critical Parts Destroyed . | . . . Critical Strikes 5 | . 3 2 Burn 3 | . 3 . Blast 2 | . . 2 Melee Attacks . | . . . Impact . | . . . Slashing . | . . . Piercing . | . . . Sneak Attacks . | . . . Combat Hostiles . | . . . Follow-up Attacks . | . . . Damage Inflicted 1935 | 13 967 955 Guns 918 | 13 748 157 Cannons 545 | . . 545 Explosions 472 | . 219 253 Melee . | . . . Ramming . | . . . Kinetic 753 | 13 132 608 Thermal 710 | . 616 94 Explosive 472 | . 219 253 Electromagnetic . | . . . Impact . | . . . Slashing . | . . . Piercing . | . . . Highest Corruption . | . . . Average Corruption . | . . . Corruption Purged . | . . . Corruption Blocked . | . . . Overload Shots . | . . . Overflow Damage 3 | . 1 2 Projectiles 2 | . . 2 Explosions 1 | . 1 . Melee . | . . . Knockbacks 8 | . . 8 Impact . | . . . Kinetic 8 | . . 8 Secondary . | . . . Self-Inflicted Damage 86 | . 59 27 Shots 4 | . 3 1 Rammed . | . . . Targets Rammed . | . . . Kicked . | . . . Crushed . | . . . Highest Temperature 303 | . 303 10 Average Temperature 72 | . 72 10 Received Heat Transfer 588 | . 321 267 Siege Activations . | . . . Robots Corrupted . | . . . Combat Hostiles . | . . . Parts Fried . | . . . Impact Corruptions . | . . . Robots Melted 1 | . 1 . Combat Hostiles 1 | . 1 . Parts Melted 2 | . 2 . Heat Transferred 2083 | . 1811 272 Parts Sabotaged . | . . . Parts Stolen . | . . . Parts Stripped . | . . . Power Chain Reactions . | . . . Alert | -11 -10 -10 ------- Run | Yrd Mat Sub Peak Influence 202 | 5 202 . Initial 3 | . 3 . Average 66 | . 71 . Maximum Alert Level 1 | . 1 . Low Security (%) 89 | 100 89 . Level 1 10 | . 10 . Level 2 . | . . . Level 3 . | . . . Level 4 . | . . . Level 5 . | . . . High Security . | . . . Max Security . | . . . Squads Dispatched 2 | . 2 . Investigation 1 | . 1 . Extermination . | . . . Reinforcement 1 | . 1 . Assault . | . . . Garrison . | . . . Intercept . | . . . Searches Triggered . | . . . Construction Impeded . | . . . Haulers Reinforced . | . . . Active Scanning Responses . | . . . Cargo Convoy Interrupts . | . . . Stealth | -11 -10 -10 --------- Run | Yrd Mat Sub Distress Signals 3 | . 3 . Communications Jammed . | . . . Distress Signals . | . . . Times Spotted 34 | . 22 12 Peak Tracking Total 7 | . 7 3 Tactical Retreats . | . . . Traps | -11 -10 -10 ------- Run | Yrd Mat Sub Traps Triggered 2 | . 2 . Indirectly . | . . . Trap Hack Attempts . | . . . Triggered . | . . . Disarmed . | . . . Reprogrammed . | . . . Reused . | . . . Traps Extracted . | . . . Installed . | . . . Triggered . | . . . Machines | -11 -10 -10 ---------- Run | Yrd Mat Sub Machines Disabled . | . . . Max in Single Turn . | . . . Machines Repaired . | . . . Machines Dismantled . | . . . Machines Sabotaged . | . . . Overloaded Fab Kills . | . . . Hacking | -11 -10 -10 --------- Run | Yrd Mat Sub Machines Accessed 4 | . 4 . Terminals 4 | . 4 . Fabricators . | . . . Repair Stations . | . . . Recycling Units . | . . . Scanalyzers . | . . . Garrison Access . | . . . Total Hacks 14 | . 14 . Successful 6 | . 6 . Failed 8 | . 8 . Catastrophic . | . . . Database Lockouts . | . . . Manual 11 | . 11 . Terminals 14 | . 14 . Fabricators . | . . . Repair Stations . | . . . Recycling Units . | . . . Scanalyzers . | . . . Garrison Access . | . . . Terminal Hacks 2 | . 2 . Unreport Threat 1 | . 1 . Zone Layout 1 | . 1 . Fabricator Hacks . | . . . Repair Station Hacks . | . . . Recycling Unit Hacks . | . . . Scanalyzer . | . . . Garrison Access Hacks . | . . . Unauthorized Hacks 4 | . 4 . Terminals 4 | . 4 . Botnet 4 | . 4 . Fabricators . | . . . Repair Stations . | . . . Recycling Units . | . . . Scanalyzers . | . . . Garrison Access . | . . . Data Cores Recovered . | . . . Used . | . . . Hacking Detections 3 | . 3 . Full Trace Events . | . . . Feedback Events . | . . . Feedback Blocked . | . . . Robot Schematics Acquired . | . . . Robots Built . | . . . Authchips . | . . . Time . | . . . Total Robot Build Rating . | . . . Part Schematics Acquired . | . . . Parts Built . | . . . Authchips . | . . . Time . | . . . Total Part Build Rating . | . . . Parts Repaired . | . . . Time . | . . . Parts Recycled . | . . . Recycled Matter . | . . . Retrieved Matter . | . . . Retrieved Components . | . . . Parts Scanalyzed . | . . . Part Schematics Acquired . | . . . Parts Damaged . | . . . Bothacking | -11 -10 -10 ------------ Run | Yrd Mat Sub Used RIF Installer . | . . . Robots Hacked . | . . . Non-combat . | . . . Combat . | . . . Robot Hacks Applied . | . . . Relay Couplers Released . | . . . Fabnet Peak Effective % . | . . . Robots Rewired . | . . . Allies Hacked . | . . . Hacks Repelled . | . . . Allies | -11 -10 -10 -------- Run | Yrd Mat Sub Total Allies . | . . . Largest Group . | . . . Highest-Rated Group . | . . . Highest-Rated Ally . | . . . Total Orders . | . . . Ally Attacks . | . . . Total Damage . | . . . Kills . | . . . Allies Corrupted . | . . . Allies Melted . | . . . Intel | -11 -10 -10 ------- Run | Yrd Mat Sub Robot Analysis Total . | . . . Derelict Logs Recovered 1 | . . 1 Drone Launches . | . . . Drone Recoveries . | . . . Exploration | -11 -10 -10 ------------- Run | Yrd Mat Sub Turns Passed 2833 | 96 1184 1553 Spaces Moved 1306 | 56 479 771 Core 33 | 33 . . Treads 1173 | . 402 771 Legs 100 | 23 77 . Wheels . | . . . Hover . | . . . Flight . | . . . Fastest Speed 50 | 50 120 160 Average Speed 157 | 135 153 161 Slowest Speed 240 | 200 160 240 Overloaded Moves . | . . . Propulsion Burnouts . | . . . Robots Hopped . | . . . Cave-ins Triggered . | . . . Exploration Rate (%) 40 | 4 84 34 Regions Visited 2 Branch Regions 1 Pre-discovered Areas 2 | . . 2 Known Exits Taken . | . . . Unknown Exits Taken 2 | 1 1 . Scrap Searched . | . . . Spaces Dug . | . . . Terrain Destroyed 38 | . 10 28 Melee . | . . . Projectile . | . . . AOE 38 | . 10 28 Terrain Rammed . | . . . Walls Destroyed . | . . . Machines Disabled . | . . . Actions | -11 -10 -10 --------- Run | Yrd Mat Sub Total 1842 | 72 848 922 Wait 352 | . 298 54 Move 1304 | 55 478 771 Hop . | . . . Pick Up 28 | 10 14 4 Fast Attach 7 | 4 2 1 Attach 11 | 2 4 5 Detach . | . . . Swap 8 | . 2 6 Drop 6 | . 6 . Fire 126 | 1 44 81 Melee . | . . . Ram . | . . . Kick . | . . . Crush . | . . . Escape Stasis . | . . . Rewire . | . . . Trap . | . . . Miscellaneous . | . . . Route ------- -11/Scrapyard -10/Materials (discovered 4 exits: [*Mat x2] / [*Min] / [*Sub]) -10/Subcaves (discovered 1 exit: [*Mat]) History --------- Turn | Location | Event 3 | -11/Scrapyard | Discovered new exit (range 15) 97 | -11/Scrapyard | Entered Materials 285 | -10/Materials | Lost 3 parts (1p1n1w) 316 | -10/Materials | Build established: Mutant 595 | -10/Materials | Discovered new exit (range 15) 776 | -10/Materials | Discovered new exit (range 19) 992 | -10/Materials | Discovered new exit (range 16) 1226 | -10/Materials | Discovered new exit (range 5) 1281 | -10/Materials | Entered Subcaves 1364 | -10/Subcaves | Ambushed by angry Subdweller bent on revenge 1405 | -10/Subcaves | Core integrity fell below 50% 1495 | -10/Subcaves | Learned location of Mines (-8) 1601 | -10/Subcaves | Learned location of Zion (-6) 1601 | -10/Subcaves | Met a Zionite searching for "candidates" 1693 | -10/Subcaves | A swath of the cavern ceiling suddenly collapsed 2326 | -10/Subcaves | Lost 3 parts (1p1n1u) 2742 | -10/Subcaves | A swath of the cavern ceiling suddenly collapsed 2762 | -10/Subcaves | Discovered new exit (range 10) 2763 | -10/Subcaves | Core integrity fell below 20% 2834 | -10/Subcaves | Destroyed by NM-BY9(R) with Subdweller Machine Gun Last Messages --------------- 02654_ Acquired 1 matter. 02656_ Acquired 7 matter. 02702_ Acquired 14 matter. 02732_ Subatomizers dissect the Wheel. 02742_ Lgt. Ion Engine crushed. A swath of the cavern ceiling suddenly collapses. 02744_ Subatomizers dissect the Wheel. 02749_ Acquired 28 matter. 02762_ EXIT=FOUND 02764_ S-10 Pest destroyed. 02778_ Flight Unit fries itself beyond repair. 02778_ Acquired 7 matter. 02779_ Subatomizers dissect the Lgt. Ion Engine. 02780_ Lgt. Ion Engine fries itself beyond repair. 02780_ Flight Unit fries itself beyond repair. 02780_ Acquired 11 matter. 02782_ Acquired 8 matter. 02791_ The unstable cave ceiling collapses. 02800_ Lgt. Armor Plating destroyed. 02816_ Lgt. Treads destroyed. Map ----- +----------------------------------------------------+ | ?????????????????# ??????????????????????? | | ???????????????### ?????????????????????? | | ???????????????# " ?????????????????????? | | ???????????????# "###???????????????????? | | ???????????????## ""###?????????????????? | | ???????????????#"###""" ?????????????????? | | ???????????????##="#"###?????????????????? | | ???????????????#""#"""######?????????????? | | ???????????????##"""#""# # ##????????????? | | ????????????????#"###" "" #??###???????? | | ????????????????#"# """# #### #???????? | | ????????????????# ####### #???????? | | ???????????????## #### # ##??????? | | ???????????????# #?## ### #?####?? | | ??????????????## # #?# ### ### ""?? | | ??????????????# #?## #?## ## ""?? | | ??????????????## ##??# #?# ###"""#?? | | ???????????????### ##### ?## # """### | | ???????????????# ## # """"" | | ???????????????## #### """"" | | ????????????????# #?## ## | | ????????????????# < #??#####?#### # | | ????????????????# ##???????????###### | | ???????????????## ####?????????????????? | | ?????????????### ##????????????????????? | | ?????????????# #R@ ##????????????????????? | | ?????????????# #????????????????????? | | ?????????????# #< #????????????????????? | | ???????????? "## #???????????????????? | | ???????????###??## #???????????????????? | | ?????????????????# ##???????????????????? | | ????????????????? ##????????????????????? | | ?????????????????# #?????????????????????? | | ?????????????????# #?????????????????????? | | ????????????????? ?????????????????????? | | ????????????????? ?????????????????????? | | ?????????????????# ?????????????????????? | | ?????????????????? ?????????????????????? | | ?????????????????? ?????????????????????? | | ?????????????????? ????????????????????? | | ?????????????????? #????????????????????? | | ??????????????????# ?????????????????????? | | ???????????????????#?????????????????????? | | ?????????????????????????????????????????? | | ?????????????????????????????????????????? | | ?????????????????????????????????????????? | | ?????????????????????????????????????????? | | ?????????????????????????????????????????? | | ?????????????????????????????????????????? | | ?????????????????????????????????????????? | +----------------------------------------------------+ Best States ------------- Heat Dissipation 25 Energy Generation 10 Energy Capacity 250 Matter Stores 300 Matter Capacity 300 Sight Range 16 Terrain Scan Density 10 Armor Coverage 150 Evasion (%) 55 Recoil Reduction 2 Item Schematics ----------------- None Robot Schematics ------------------ None Fabricated ------------ Nothing Alien Tech Used ----------------- None Achievements -------------- None Challenges ------------ None Game ------ Seed PointySapperShield Manual? 0 Play Time 00:16:18 Cumulative 88.4 hours Start 2024.12.02 @ 20:38:05 End 2024.12.02 @ 20:51:27 Sessions 1 Manual Loads 0 Difficulty Rogue Special Mode None Game No. 96 Rogue 96 Adventurer 0 Explorer 0 Win Type - Total 0 Types 0/0/0/0/0/0/0/0/0 Lore% 12 Gallery% 38 Achievement% 34 Wizard Run 0 Options --------- Layout 2 ASCII 0 Keyboard 0 Movement Mouse Keybinds 0 Fullscreen 2 Font 16/SmallcapsGlow Map View 55x47 Zoom Use 1% Tactical HUD 1 Map Filters NONE Filters NONE Steam 1 RUN: 7b225de1-1263-4271-a64a-cf7741e8238e